bitfinex/quotes_BTCUSD_20250102
["timestamp","ask_amount","ask_price","bid_price","bid_amount"]
[1735791070550,8.53e-05,95353.0,95352.0,0.85805978]
[1735791071909,8.53e-05,95353.0,95352.0,0.74715978]
[1735791073546,8.53e-05,95353.0,95352.0,0.76715978]
[1735791074408,8.53e-05,95353.0,95352.0,0.80916778]
[1735791076861,8.53e-05,95353.0,95352.0,0.80825178]
[1735791078093,8.53e-05,95353.0,95352.0,0.90249476]
[1735791078793,0.07897414,95358.0,95357.0,0.558822]
[1735791079013,0.07897414,95358.0,95357.0,0.68580832]
[1735791079158,0.07897414,95358.0,95357.0,0.69578618]
[1735791079363,0.07906735,95358.0,95357.0,0.69578618]
[1735791080010,0.12616735,95358.0,95357.0,0.69578618]
[1735791080205,0.12616735,95358.0,95357.0,0.60070218]
[1735791081666,0.12616735,95358.0,95357.0,0.35070218]
[1735791082030,0.12616735,95358.0,95357.0,0.35970218]
[1735791092450,0.12625265,95358.0,95357.0,0.35970218]
[1735791092645,0.14268613,95358.0,95357.0,0.35970218]
[1735791093811,0.16195474,95358.0,95357.0,0.04597786]
[1735791094067,0.000916,95355.0,95352.0,0.0601706]
[1735791094276,0.1236,95354.0,95353.0,0.01498505]
[1735791095366,0.1236,95354.0,95344.0,0.209764]
[1735791095367,0.000916,95324.0,95323.0,0.15586929]
[1735791095572,1.038655,95324.0,95323.0,0.02776929]
[1735791095779,1.038655,95324.0,95321.0,0.09431478]
[1735791095780,0.000916,95322.0,95321.0,0.09431478]
[1735791096119,0.1236,95324.0,95321.0,0.09431478]
[1735791096537,0.1236,95324.0,95323.0,0.004]
[1735791096719,0.1236,95324.0,95323.0,0.023]
[1735791096925,0.1236,95324.0,95323.0,0.02304936]
[1735791097405,0.1236,95324.0,95323.0,0.02504936]
[1735791098008,0.1236,95324.0,95323.0,0.02304936]
[1735791098219,0.1236,95324.0,95323.0,0.02404936]
[1735791098660,0.1256,95324.0,95323.0,0.02404936]
[1735791098839,0.1256,95324.0,95323.0,0.02304936]
[1735791099061,0.1266,95324.0,95323.0,0.02304936]
[1735791099429,0.1393516,95324.0,95323.0,0.02304936]
[1735791103542,0.09858304,95324.0,95323.0,0.02304936]
[1735791104236,0.08898033,95324.0,95323.0,0.02304936]
[1735791105355,0.08898033,95324.0,95323.0,0.02321996]
[1735791105814,0.08898033,95324.0,95323.0,0.03584451]
[1735791109280,0.003,95324.0,95323.0,0.13983083]
[1735791109479,0.003,95324.0,95323.0,0.15381391]
[1735791109687,0.003,95324.0,95323.0,0.13983083]
[1735791110039,0.002,95324.0,95323.0,0.13983083]
[1735791110656,0.000916,95347.0,95323.0,0.13983083]
[1735791110875,0.000916,95347.0,95332.0,0.023]
[1735791111200,0.000916,95347.0,95334.0,0.021]
[1735791111521,0.000916,95347.0,95335.0,0.11704574]
[1735791111891,0.000916,95347.0,95335.0,0.32683074]
[1735791112435,0.003916,95347.0,95335.0,0.32683074]
[1735791112630,0.003916,95347.0,95343.0,0.419536]
[1735791112631,0.01643758,95345.0,95343.0,0.419536]
[1735791112830,0.01643758,95345.0,95344.0,0.10398632]
[1735791112975,0.004,95347.0,95345.0,0.209764]
[1735791113185,0.004,95347.0,95346.0,0.12698632]
[1735791113391,0.003,95347.0,95346.0,0.13999551]
[1735791113664,0.003,95347.0,95346.0,0.19594826]
[1735791113877,0.004,95347.0,95346.0,0.19594826]
[1735791114079,0.007,95347.0,95346.0,0.19594826]
[1735791114287,0.05,95360.0,95348.0,0.023]
[1735791114435,0.05,95360.0,95350.0,0.023]
[1735791114649,0.05,95360.0,95352.0,0.023]
[1735791114815,0.05,95360.0,95354.0,0.023]
[1735791115217,0.05,95360.0,95356.0,0.023]
[1735791115531,0.05,95360.0,95357.0,0.03595897]
[1735791115727,0.00017851,95358.0,95357.0,0.03595897]
[1735791116719,0.00017851,95358.0,95357.0,0.13994529]
[1735791117412,0.00417851,95358.0,95357.0,0.13994529]
[1735791118010,0.00717851,95358.0,95357.0,0.13994529]
[1735791118176,0.00417851,95358.0,95357.0,0.13994529]
[1735791118380,0.00317851,95358.0,95357.0,0.13994529]
[1735791118578,0.00617851,95358.0,95357.0,0.13994529]
[1735791118955,0.00017851,95358.0,95357.0,0.13994529]
[1735791119150,0.00217851,95358.0,95357.0,0.13994529]
[1735791119565,0.00317851,95358.0,95357.0,0.13994529]
[1735791119971,0.00217851,95358.0,95357.0,0.13994529]
[1735791120558,0.00017851,95358.0,95357.0,0.13994529]
[1735791121065,0.00017851,95358.0,95357.0,0.14094529]
[1735791121880,0.00017851,95358.0,95357.0,0.14194529]
[1735791123538,0.00017851,95358.0,95357.0,0.21704529]
[1735791125711,0.00017851,95358.0,95357.0,0.21622429]
[1735791132705,0.00017851,95358.0,95357.0,0.19322429]
[1735791133517,0.00017851,95358.0,95357.0,0.54230829]
[1735791133723,0.00017851,95358.0,95357.0,0.58860829]
[1735791134327,0.00017851,95358.0,95357.0,0.58760829]
[1735791134591,5.1e-07,95358.0,95357.0,0.60960829]
[1735791134788,5.1e-07,95360.0,95359.0,0.372084]
[1735791135001,5.1e-07,95360.0,95359.0,0.65645664]
[1735791135207,5.1e-07,95360.0,95359.0,0.66926964]
[1735791136540,5.1e-07,95360.0,95359.0,0.67326964]
[1735791137179,5.1e-07,95360.0,95359.0,0.68126964]
[1735791141237,5.1e-07,95360.0,95359.0,0.68144024]
[1735791141594,8.1e-07,95360.0,95359.0,0.80867574]
[1735791141799,8.1e-07,95360.0,95359.0,0.68144024]
[1735791142409,8.1e-07,95360.0,95359.0,1.22384024]
[1735791144036,8.52e-05,95395.0,95394.0,0.55874]
[1735791144237,0.00018877,95395.0,95394.0,0.84930032]
[1735791144372,0.00018877,95395.0,95394.0,0.86195362]
[1735791145223,0.00118877,95395.0,95394.0,0.65719562]
[1735791145461,0.00118877,95395.0,95394.0,0.47629562]
[1735791145600,0.00118877,95395.0,95394.0,0.57629562]
[1735791145801,0.00018877,95395.0,95394.0,0.47629562]
[1735791146000,0.00018877,95395.0,95394.0,0.47829562]
[1735791146001,0.00218877,95395.0,95394.0,0.47829562]
[1735791146206,0.00218877,95395.0,95394.0,0.58228194]
[1735791146423,0.00018877,95395.0,95394.0,0.58228194]
[1735791146629,0.00018877,95395.0,95394.0,0.58528194]
[1735791147563,0.00018877,95395.0,95394.0,0.68528194]
[1735791151121,0.00018877,95395.0,95394.0,0.78436594]
[1735791151924,0.00018877,95395.0,95394.0,0.48129562]
[1735791155584,0.00018877,95395.0,95394.0,0.58129562]
[1735791155782,0.00018877,95395.0,95394.0,0.70419162]
[1735791161321,0.00018877,95395.0,95394.0,0.60419162]
[1735791161526,0.00018877,95395.0,95394.0,0.70419162]
[1735791161727,0.00018877,95395.0,95394.0,0.80817794]
[1735791162555,0.04942983,95410.0,95408.0,0.209626]
[1735791162747,0.04942983,95410.0,95409.0,0.11657121]
[1735791163785,0.05142983,95410.0,95409.0,0.11657121]
[1735791164213,0.05342983,95410.0,95409.0,0.11657121]
[1735791164413,0.05342983,95410.0,95409.0,0.19111703]
[1735791164606,0.05142983,95410.0,95409.0,0.19111703]
[1735791165068,0.05151513,95410.0,95409.0,0.34111703]
[1735791165577,0.05351513,95410.0,95409.0,0.34111703]
[1735791166119,0.05151513,95410.0,95409.0,0.34111703]
[1735791166341,0.05151513,95410.0,95409.0,0.42031703]
[1735791166539,0.05151513,95410.0,95409.0,0.42431703]
[1735791166938,0.04951513,95410.0,95409.0,0.42431703]
[1735791167144,0.04951513,95410.0,95409.0,0.42631703]
[1735791171018,0.04451513,95410.0,95409.0,0.42631703]
[1735791173145,0.04451513,95410.0,95409.0,0.52540103]
[1735791175119,0.04451513,95410.0,95409.0,0.62540103]
[1735791175537,0.04451513,95410.0,95409.0,0.55085521]
[1735791175879,0.04451513,95410.0,95409.0,0.59465521]
[1735791176398,0.04451513,95410.0,95409.0,0.55085521]
[1735791176899,0.04451513,95410.0,95409.0,0.55102581]
[1735791180101,0.04451513,95410.0,95409.0,0.47182581]
[1735791180541,0.04451513,95410.0,95409.0,0.57581213]
[1735791182932,0.04451513,95410.0,95409.0,0.47182581]
[1735791185168,0.04451513,95410.0,95409.0,0.37274181]
[1735791185748,0.04451513,95410.0,95409.0,0.27274181]
[1735791187199,0.04451513,95410.0,95409.0,0.12274181]
[1735791188158,0.04451513,95410.0,95409.0,0.11874181]
[1735791188592,0.04451513,95410.0,95409.0,0.12174181]
[1735791188799,0.04451513,95410.0,95409.0,0.11974181]
[1735791189011,0.04451513,95410.0,95409.0,0.11774181]
[1735791189205,0.04651513,95410.0,95409.0,0.11774181]
[1735791189390,0.04451513,95410.0,95409.0,0.11774181]
[1735791189747,0.04451513,95410.0,95409.0,0.11674181]
[1735791190081,0.04551513,95410.0,95409.0,0.11674181]
[1735791190931,0.04751513,95410.0,95409.0,0.11674181]
[1735791191153,0.12863113,95410.0,95409.0,0.01275549]
[1735791191354,0.38705213,95410.0,95409.0,0.0001706]
[1735791192434,0.38605213,95410.0,95409.0,0.0001706]
[1735791192642,0.38405213,95410.0,95409.0,0.0001706]
[1735791192766,0.38605213,95410.0,95409.0,0.0001706]
[1735791193373,0.38405213,95410.0,95409.0,0.0001706]
[1735791193585,0.38605213,95410.0,95409.0,0.0001706]
[1735791193985,0.38905213,95410.0,95409.0,0.0001706]
[1735791196167,0.17943113,95410.0,95409.0,0.0001706]
[1735791198863,0.27377425,95410.0,95409.0,0.0001706]
[1735791202078,0.17943113,95410.0,95409.0,0.0001706]
[1735791203118,0.36803392,95410.0,95409.0,0.0001706]
[1735791204051,0.17943113,95410.0,95409.0,0.0001706]
[1735791205045,0.32084369,95410.0,95409.0,0.0001706]
[1735791206105,0.84691201,95410.0,95409.0,0.0001706]
[1735791206312,0.70549945,95410.0,95409.0,0.0001706]
[1735791207267,0.70249945,95410.0,95409.0,0.0001706]
[1735791207547,0.70349945,95410.0,95409.0,0.0011706]
[1735791207962,0.70749945,95410.0,95409.0,0.0011706]
[1735791208385,0.70349945,95410.0,95409.0,0.0011706]
[1735791208723,0.70749945,95410.0,95409.0,0.0011706]
[1735791213764,0.94293104,95410.0,95409.0,0.0011706]
[1735791217014,0.70749945,95410.0,95409.0,0.0011706]
[1735791217185,0.69749945,95410.0,95409.0,0.0011706]
[1735791218497,1.08290486,95410.0,95409.0,0.0011706]
[1735791219702,0.84749945,95410.0,95409.0,0.0011706]
[1735791223285,0.94749945,95410.0,95409.0,6e-07]
[1735791223421,0.64903829,95410.0,95409.0,6e-07]
[1735791223605,0.64903829,95410.0,95365.0,0.0788]
[1735791223606,0.000916,95376.0,95365.0,0.0788]
[1735791223816,0.000916,95376.0,95375.0,0.00027417]
[1735791223817,0.616871,95376.0,95375.0,0.00027417]
[1735791224025,0.793467,95376.0,95375.0,0.00027417]
[1735791224226,0.760767,95376.0,95375.0,0.00027417]
[1735791225306,0.209707,95371.0,95357.0,0.06856411]
[1735791226083,0.209698,95375.0,95357.0,0.06856411]
[1735791226468,0.209698,95375.0,95358.0,0.01281757]
[1735791227337,0.09425017,95374.0,95358.0,0.01281757]
[1735791227482,0.002,95371.0,95358.0,0.01281757]
[1735791228104,0.09425017,95374.0,95358.0,0.01281757]
[1735791228308,0.213698,95375.0,95358.0,0.01281757]
[1735791228508,0.004,95374.0,95358.0,0.01281757]
[1735791228951,0.001,95371.0,95358.0,0.01281757]
[1735791229264,0.003,95371.0,95358.0,0.01281757]
[1735791230349,0.209698,95375.0,95358.0,0.01281757]
[1735791230572,0.004,95374.0,95358.0,0.01281757]
[1735791231209,0.001,95371.0,95358.0,0.01281757]
[1735791231562,0.210698,95375.0,95358.0,0.01281757]
[1735791231777,0.003,95374.0,95358.0,0.01281757]
[1735791232143,0.004,95374.0,95358.0,0.01281757]
[1735791232369,0.000916,95359.0,95358.0,0.01281757]
[1735791234570,0.000916,95359.0,95358.0,0.01381757]
[1735791237829,0.000916,95364.0,95359.0,0.209733]
[1735791238067,8.53e-05,95371.0,95360.0,0.19269476]
[1735791238068,0.000916,95365.0,95360.0,0.19269476]
[1735791238839,0.000916,95365.0,95362.0,0.209726]
[1735791239076,0.000916,95365.0,95364.0,0.209722]
[1735791239410,0.000916,95365.0,95364.0,0.22251218]
[1735791241045,0.001916,95365.0,95364.0,0.22251218]
[1735791241203,0.000916,95366.0,95364.0,0.22251218]
[1735791241404,0.000916,95368.0,95364.0,0.22251218]
[1735791241685,0.01743261,95365.0,95364.0,0.22251218]
[1735791242020,0.01643261,95365.0,95364.0,0.22251218]
[1735791242775,0.000916,95368.0,95364.0,0.22251218]
[1735791243110,0.000916,95366.0,95364.0,0.22351218]
[1735791243586,0.000916,95366.0,95364.0,0.22251218]
[1735791244627,0.000916,95366.0,95364.0,0.22351218]
[1735791245631,0.000916,95365.0,95364.0,0.22351218]
[1735791245886,0.000916,95365.0,95364.0,0.01379018]
[1735791246594,0.000916,95365.0,95364.0,0.01279018]
[1735791246834,0.000916,95365.0,95364.0,0.001]
[1735791247011,0.000916,95365.0,95364.0,0.01379018]
[1735791247412,0.264351,95365.0,95364.0,0.01379018]
[1735791247613,0.943626,95365.0,95364.0,0.001]
[1735791247825,1.429396,95365.0,95364.0,0.001]
[1735791248026,1.647626,95365.0,95364.0,0.001]
[1735791248267,0.419444,95364.0,95345.0,0.0759]
[1735791248461,0.209735,95359.0,95345.0,0.0759]
[1735791250298,0.09425017,95358.0,95345.0,0.0759]
[1735791251479,0.09725017,95358.0,95345.0,0.0759]
[1735791251860,0.09825017,95358.0,95345.0,0.0759]
[1735791252241,0.004,95358.0,95345.0,0.0759]
[1735791255468,0.214651,95358.0,95345.0,0.0759]
[1735791255671,0.214651,95358.0,95339.0,0.0803]
[1735791256289,0.213651,95358.0,95339.0,0.0803]
[1735791256466,0.35202626,95358.0,95339.0,0.0803]
[1735791256666,0.35502626,95358.0,95339.0,0.0803]
[1735791257160,0.35402626,95358.0,95339.0,0.0803]
[1735791257472,0.30596868,95358.0,95339.0,0.0803]
[1735791257809,0.30796868,95358.0,95339.0,0.0803]
[1735791258008,0.30696868,95358.0,95339.0,0.0803]
[1735791258170,0.30796868,95358.0,95339.0,0.0803]
[1735791258908,0.80966768,95358.0,95339.0,0.0803]
[1735791259113,0.70724468,95358.0,95339.0,0.0803]
[1735791259329,0.77052568,95358.0,95339.0,0.0803]
[1735791259714,0.77061098,95358.0,95339.0,0.0803]
[1735791259915,0.70308598,95358.0,95339.0,0.0803]
[1735791260116,0.70008598,95358.0,95339.0,0.0803]
[1735791260417,0.7870583,95358.0,95334.0,0.0001706]
[1735791260641,0.84288841,95358.0,95334.0,0.0001706]
[1735791260920,0.69074062,95358.0,95334.0,0.0001706]
[1735791261265,0.68974062,95358.0,95334.0,0.0001706]
[1735791261572,0.69174062,95358.0,95334.0,0.0001706]
[1735791262003,0.69274062,95358.0,95334.0,0.0001706]
[1735791262203,0.88124097,95358.0,95334.0,0.0001706]
[1735791262829,0.87824097,95358.0,95334.0,0.0001706]
[1735791263030,1.07836606,95358.0,95334.0,0.0001706]
[1735791263864,1.07736606,95358.0,95334.0,0.0001706]
[1735791264222,1.08136606,95358.0,95334.0,0.0001706]
[1735791264426,1.07836606,95358.0,95334.0,0.0001706]
[1735791264670,1.07436606,95358.0,95334.0,0.0001706]
[1735791264986,0.84974062,95358.0,95334.0,0.0001706]
[1735791266485,0.84974062,95358.0,95334.0,0.2099576]
[1735791266486,0.6670383,95358.0,95334.0,0.2099576]
[1735791266688,0.0120013,95358.0,95350.0,0.0828]
[1735791268079,0.15354674,95358.0,95350.0,0.0828]
[1735791269084,0.0120013,95358.0,95350.0,0.0828]
[1735791270116,0.20072856,95358.0,95350.0,0.0828]
[1735791271423,0.20072856,95358.0,95334.0,0.2099576]
[1735791271424,0.233702,95335.0,95334.0,0.0001706]
[1735791271655,2.51707,95335.0,95334.0,0.0001706]
[1735791271880,2.959427,95335.0,95334.0,0.00026381]
[1735791272126,2.865226,95335.0,95334.0,0.00026381]
[1735791272765,2.445767,95335.0,95334.0,0.00026381]
[1735791273018,1.978121,95335.0,95334.0,0.00026381]
[1735791273237,1.52328,95335.0,95334.0,0.00026381]
[1735791273471,1.411175,95335.0,95334.0,0.00026381]
[1735791273692,1.43704026,95335.0,95334.0,0.00026381]
[1735791273917,1.38219326,95335.0,95334.0,0.00026381]
[1735791274136,1.36698326,95335.0,95334.0,0.00026381]
[1735791275015,1.178256,95335.0,95334.0,0.00026381]
[1735791275686,1.176256,95335.0,95334.0,0.00026381]
[1735791275894,1.187256,95335.0,95334.0,0.00026381]
[1735791277055,1.42305057,95335.0,95334.0,0.00026381]
[1735791277798,1.187256,95335.0,95334.0,0.00026381]
[1735791278253,1.29124232,95335.0,95334.0,0.00026381]
[1735791278862,1.29124232,95335.0,95334.0,0.02026381]
[1735791280024,0.49868832,95335.0,95334.0,0.02026381]
[1735791280224,2.17398832,95335.0,95334.0,0.02026381]
[1735791280696,2.27398832,95335.0,95334.0,0.02026381]
[1735791281482,2.462438,95335.0,95334.0,0.02026381]
[1735791281861,2.454438,95335.0,95334.0,0.02026381]
[1735791282060,2.451438,95335.0,95334.0,0.02026381]
[1735791282259,2.464438,95335.0,95334.0,0.02026381]
[1735791282516,2.455438,95335.0,95334.0,0.02026381]
[1735791282862,2.464438,95335.0,95334.0,0.02026381]
[1735791283073,2.460438,95335.0,95334.0,0.02026381]
[1735791283298,2.460438,95335.0,95334.0,0.04026381]
[1735791283494,2.27698832,95335.0,95334.0,0.04026381]
[1735791285097,2.26798832,95335.0,95334.0,0.04026381]
[1735791285278,2.26298832,95335.0,95334.0,0.04026381]
[1735791285482,2.27198832,95335.0,95334.0,0.04026381]
[1735791286131,2.27598832,95335.0,95334.0,0.04026381]
[1735791286947,1.72320432,95335.0,95334.0,0.04026381]
[1735791287156,1.519218,95335.0,95334.0,0.04026381]
[1735791287331,0.811234,95335.0,95334.0,0.04026381]
[1735791287928,0.834234,95335.0,95334.0,0.06026381]
[1735791288150,0.821234,95335.0,95334.0,0.06026381]
[1735791288551,0.834234,95335.0,95334.0,0.06026381]
[1735791289363,0.830234,95335.0,95334.0,0.06026381]
[1735791289541,0.92441892,95335.0,95334.0,0.06026381]
[1735791289719,0.91841892,95335.0,95334.0,0.06026381]
[1735791290135,0.92541892,95335.0,95334.0,0.06026381]
[1735791290327,0.831234,95335.0,95334.0,0.06026381]
[1735791292503,0.831234,95335.0,95334.0,0.08026381]
[1735791293964,0.393702,95335.0,95334.0,0.08026381]
[1735791294166,1.635327,95335.0,95334.0,0.08026381]
[1735791297141,1.635327,95335.0,95334.0,0.10026381]
[1735791298313,1.87112157,95335.0,95334.0,0.10026381]
[1735791299527,1.635327,95335.0,95334.0,0.10026381]
[1735791306182,1.724803,95335.0,95334.0,0.10026381]
[1735791306371,1.712895,95335.0,95334.0,0.10026381]
[1735791307803,1.692035,95335.0,95334.0,0.10026381]
[1735791309466,1.614041,95335.0,95334.0,0.10026381]
[1735791317355,0.393702,95335.0,95334.0,0.10026381]
[1735791317695,1.603409,95335.0,95334.0,0.10026381]
[1735791318102,1.593407,95335.0,95334.0,0.10026381]
[1735791318623,0.96665,95335.0,95334.0,0.10026381]
[1735791318797,0.96665,95335.0,95334.0,0.18126381]
[1735791318798,0.01,95335.0,95334.0,0.18126381]
[1735791318999,0.010916,95335.0,95334.0,0.18126381]
[1735791319242,0.010916,95335.0,95334.0,0.19419096]
[1735791319682,0.007916,95335.0,95334.0,0.19419096]
[1735791319940,0.000916,95335.0,95334.0,0.19419096]
[1735791321696,0.01735515,95335.0,95334.0,0.19419096]
[1735791322151,0.000916,95335.0,95334.0,0.19419096]
[1735791323288,0.000916,95335.0,95334.0,0.18126381]
[1735791323659,0.000916,95335.0,95334.0,0.19419096]
[1735791323835,0.09550992,95335.0,95334.0,0.19419096]
[1735791324421,0.000916,95335.0,95334.0,0.19419096]
[1735791324622,0.000916,95335.0,95334.0,0.10026381]
[1735791324826,0.000916,95335.0,95334.0,0.11319096]
[1735791325624,0.210702,95335.0,95334.0,0.11319096]
[1735791326771,0.211702,95335.0,95334.0,0.11319096]
[1735791327893,0.211702,95335.0,95334.0,0.01319096]
[1735791328076,0.213702,95335.0,95334.0,0.01319096]
[1735791328276,0.214702,95335.0,95334.0,0.00026381]
[1735791329280,0.214702,95335.0,95334.0,0.02026381]
[1735791329822,0.214702,95335.0,95334.0,0.03319096]
[1735791330322,0.004916,95335.0,95334.0,0.03319096]
[1735791330735,0.004916,95335.0,95334.0,0.02026381]
[1735791331611,0.214702,95335.0,95334.0,0.02026381]
[1735791333874,0.214702,95335.0,95334.0,0.04026381]
[1735791334897,0.004,95335.0,95334.0,0.04026381]
[1735791335111,0.24132588,95335.0,95334.0,0.04026381]
[1735791335322,0.24132588,95335.0,95334.0,0.05319096]
[1735791335521,0.24132588,95335.0,95334.0,0.04026381]
[1735791335768,0.24132588,95335.0,95334.0,0.11856381]
[1735791335967,0.24032588,95335.0,95334.0,0.13149096]
[1735791336184,0.23732588,95335.0,95334.0,0.13149096]
[1735791336383,0.000916,95335.0,95334.0,0.13149096]
[1735791337410,0.09646056,95335.0,95334.0,0.13149096]
[1735791337564,0.09946056,95335.0,95334.0,0.13149096]
[1735791337763,0.09846056,95335.0,95334.0,0.13149096]
[1735791338427,0.09546056,95335.0,95334.0,0.13149096]
[1735791338703,0.000916,95335.0,95334.0,0.13149096]
[1735791338909,0.000916,95335.0,95334.0,0.15149096]
[1735791343567,0.000916,95335.0,95334.0,0.15856381]
[1735791343798,0.000916,95335.0,95334.0,0.17149096]
[1735791347062,0.14270937,95335.0,95334.0,0.17149096]
[1735791347957,0.14270937,95335.0,95334.0,0.19149096]
[1735791349061,0.000916,95335.0,95334.0,0.19149096]
[1735791351904,0.14272266,95335.0,95334.0,0.19149096]
[1735791353343,0.14180666,95335.0,95334.0,0.19149096]
[1735791354181,0.14272266,95336.0,95334.0,0.19149096]
[1735791355135,0.000916,95336.0,95334.0,0.19149096]
[1735791361687,0.14272266,95336.0,95334.0,0.19149096]
[1735791362648,0.000916,95335.0,95334.0,0.19149096]
[1735791364005,0.19002112,95335.0,95334.0,0.19149096]
[1735791365967,0.14286719,95335.0,95334.0,0.19149096]
[1735791366720,0.000916,95335.0,95334.0,0.19149096]
[1735791367839,0.23640988,95337.0,95335.0,0.209786]
[1735791368043,0.23640988,95337.0,95336.0,0.18058632]
[1735791368250,0.23640988,95337.0,95336.0,0.19350434]
[1735791368454,0.23640988,95337.0,95336.0,0.23960434]
[1735791369094,8.53e-05,95357.0,95336.0,0.23960434]
[1735791369095,0.14195152,95338.0,95337.0,0.339582]
[1735791369271,0.14195152,95338.0,95337.0,0.54755464]
[1735791369508,0.14195152,95338.0,95337.0,0.56046809]
[1735791370105,0.0945868,95351.0,95350.0,0.209753]
[1735791370309,0.0945868,95351.0,95350.0,0.39633932]
[1735791370547,0.0945868,95351.0,95350.0,0.40919341]
[1735791370926,0.0945868,95356.0,95350.0,0.37379341]
[1735791371128,0.0945868,95356.0,95355.0,0.209742]
[1735791371369,0.0945868,95356.0,95355.0,0.39632832]
[1735791371570,0.0945868,95356.0,95355.0,0.40915958]
[1735791371782,8.53e-05,95357.0,95355.0,0.40915958]
[1735791371977,8.53e-05,95357.0,95356.0,0.10398632]
[1735791372138,8.53e-05,95357.0,95356.0,0.11681302]
[1735791373684,8.53e-05,95357.0,95356.0,0.19941302]
[1735791374002,8.53e-05,95357.0,95356.0,0.20041302]
[1735791374360,8.53e-05,95357.0,95356.0,0.19941302]
[1735791375117,0.0010853,95357.0,95356.0,0.19941302]
[1735791375316,8.53e-05,95357.0,95356.0,0.19941302]
[1735791376279,8.53e-05,95357.0,95356.0,0.20041302]
[1735791376913,8.53e-05,95357.0,95356.0,0.19941302]
[1735791377116,0.0010853,95357.0,95356.0,0.20041302]
[1735791377289,0.0010853,95357.0,95356.0,0.29209086]
[1735791377700,0.0010853,95357.0,95356.0,0.20041302]
[1735791378238,0.0020853,95357.0,95356.0,0.20041302]
[1735791382567,0.0020853,95357.0,95356.0,0.20461402]
[1735791384587,0.0020853,95357.0,95356.0,0.22461402]
[1735791385028,0.0020853,95357.0,95356.0,0.22041302]
[1735791386852,0.0020853,95357.0,95356.0,0.22058362]
[1735791389613,0.0020853,95357.0,95356.0,0.24058362]
[1735791392068,0.0020853,95357.0,95356.0,0.15217643]
[1735791395008,0.0020853,95357.0,95356.0,0.17217643]
[1735791397419,0.0020853,95357.0,95356.0,0.0739973]
[1735791397625,0.0030013,95357.0,95356.0,0.0739973]
[1735791397836,0.03182296,95357.0,95356.0,0.0739973]
[1735791398034,0.03182296,95357.0,95356.0,0.0611706]
[1735791398441,0.0020013,95357.0,95356.0,0.0601706]
[1735791398866,0.0040013,95357.0,95356.0,0.0601706]
[1735791399064,0.0040013,95357.0,95356.0,0.0729973]
[1735791399277,0.0030013,95357.0,95356.0,0.0729973]
[1735791399507,0.0030013,95357.0,95356.0,0.0929973]
[1735791399718,0.0030013,95357.0,95356.0,0.0801706]
[1735791400832,0.0030013,95357.0,95356.0,0.0929973]
[1735791401241,0.04128184,95357.0,95356.0,0.0929973]
[1735791401681,1.11486084,95357.0,95356.0,0.0801706]
[1735791401891,1.00878316,95357.0,95356.0,0.0801706]
[1735791402065,0.81332316,95357.0,95356.0,0.0801706]
[1735791402270,0.90790996,95357.0,95356.0,0.0801706]
[1735791403128,0.91390996,95357.0,95356.0,0.0801706]
[1735791403319,0.87362942,95357.0,95356.0,0.0801706]
[1735791403557,0.88362942,95357.0,95356.0,0.0801706]
[1735791403770,0.78904262,95357.0,95356.0,0.0801706]
[1735791404660,0.39248762,95357.0,95356.0,0.0801706]
[1735791404871,1.11794462,95357.0,95356.0,0.0801706]
[1735791405077,1.09579062,95357.0,95356.0,0.0801706]
[1735791405287,0.75151362,95357.0,95356.0,0.0801706]
[1735791405509,0.62100862,95357.0,95356.0,0.0801706]
[1735791405690,0.62800862,95357.0,95356.0,0.0801706]
[1735791411096,0.62800862,95357.0,95356.0,0.1011706]
[1735791411484,0.72800862,95357.0,95356.0,0.1011706]
[1735791412428,0.71900862,95357.0,95356.0,0.1011706]
[1735791412742,0.73400862,95357.0,95356.0,0.1011706]
[1735791413528,1.01800951,95357.0,95356.0,0.1011706]
[1735791414073,1.00900951,95357.0,95356.0,0.1011706]
[1735791414255,1.00300951,95357.0,95356.0,0.1011706]
[1735791414461,0.72800862,95357.0,95356.0,0.1011706]
[1735791414790,0.73300862,95357.0,95356.0,0.1011706]
[1735791415119,0.72800862,95357.0,95356.0,0.1011706]
[1735791415526,0.73200862,95357.0,95356.0,0.1011706]
[1735791416939,0.732194,95357.0,95356.0,0.1011706]
[1735791417748,0.728194,95357.0,95356.0,0.1011706]
[1735791418341,0.734194,95357.0,95356.0,0.1011706]
[1735791418790,0.728194,95357.0,95356.0,0.1011706]
[1735791418994,0.734194,95357.0,95356.0,0.1011706]
[1735791419347,0.725194,95357.0,95356.0,0.1011706]
[1735791419581,0.734194,95357.0,95356.0,0.1011706]
[1735791419781,0.725194,95357.0,95356.0,0.1011706]
[1735791420185,0.734194,95357.0,95356.0,0.1011706]
[1735791420457,0.719194,95357.0,95356.0,0.1011706]
[1735791420939,0.734194,95357.0,95356.0,0.1011706]
[1735791421111,0.725194,95357.0,95356.0,0.1011706]
[1735791421523,0.719194,95357.0,95356.0,0.1011706]
[1735791421728,0.724194,95357.0,95356.0,0.1011706]
[1735791422387,0.719194,95357.0,95356.0,0.1011706]
[1735791422534,0.728194,95357.0,95356.0,0.1011706]
[1735791422961,0.719194,95357.0,95356.0,0.1011706]
[1735791423122,0.728194,95357.0,95356.0,0.1011706]
[1735791423520,0.719194,95357.0,95356.0,0.1011706]
[1735791423727,0.728194,95357.0,95356.0,0.1011706]
[1735791424124,0.724194,95357.0,95356.0,0.1011706]
[1735791424352,0.733194,95357.0,95356.0,0.1011706]
[1735791424762,0.728194,95357.0,95356.0,0.1011706]
[1735791425000,0.490673,95357.0,95356.0,0.1011706]
[1735791425198,3.233681,95357.0,95356.0,0.1011706]
[1735791425559,3.221935,95357.0,95356.0,0.1011706]
[1735791425775,3.212935,95357.0,95356.0,0.1011706]
[1735791426094,2.744683,95357.0,95356.0,0.1011706]
[1735791426300,2.365908,95357.0,95356.0,0.1011706]
[1735791426506,1.75007862,95357.0,95356.0,0.1011706]
[1735791426723,1.72818962,95357.0,95356.0,0.1011706]
[1735791426951,1.73718962,95357.0,95356.0,0.1011706]
[1735791430756,1.73718962,95357.0,95356.0,0.0211706]
[1735791432249,1.75903625,95357.0,95356.0,0.0211706]
[1735791432789,1.75903625,95357.0,95356.0,0.0411706]
[1735791432996,1.73803625,95357.0,95356.0,0.0201706]
[1735791434703,1.73812155,95357.0,95356.0,0.0201706]
[1735791437635,2.02212244,95357.0,95356.0,0.0201706]
[1735791437771,2.02212244,95357.0,95356.0,0.0401706]
[1735791439799,1.73812155,95357.0,95356.0,0.0401706]
[1735791442346,1.73812155,95357.0,95356.0,0.0601706]
[1735791443481,2.05773162,95357.0,95356.0,0.0601706]
[1735791444507,1.79155035,95357.0,95356.0,0.0601706]
[1735791446265,1.91449788,95357.0,95356.0,0.0601706]
[1735791446434,1.91511176,95357.0,95356.0,0.0601706]
[1735791446847,1.92776245,95357.0,95356.0,0.0801706]
[1735791447093,1.92276245,95357.0,95356.0,0.0801706]